Cogmind - Beta 14 @@@ ROGUE MODE // 2025.04.24 @ 13:24:57 // Winter2019/RPGLIKE Player: EREBUS79 Result: Destroyed by P-70 Sage with High-powered Shock Rifle Performance ------------- Evolutions (5) 2500 Regions Visited (8) 1600 Robots Destroyed (80) 400 Value Destroyed (2488) 2488 Prototype IDs (11) 220 Alien Tech Used (0) 0 Bonus (559) 559 TOTAL SCORE: 7767 Bonus ------- High Alert Combat Kills 59 Entered DSFs 500 Cogmind --------- Core Integrity 0/1750 Matter 265/350 Energy 156/375 System Corruption 0% Temperature Critical (617) Movement Hovering (99) Ox1 Location -5/Factory Parts ------- > --- POWER (1) -------- Multi-Fission Core > --- PROPULSION (2) --- Hovering Gravjet-Armored Exoskeleton > --- UTILITY (4) ------ Armored Scrap Engine Transmission Jammer > --- WEAPON (4) ------- Electro Disruptor Construct/C Electro Disruptor Construct/C Hvy. Directed Construct/C > --- INVENTORY (0) ---- (None) Peak State ------------ > --- POWER ------------ Multi-Fission Core > --- PROPULSION ------- Hovering Gravjet-Armored Exoskeleton > --- UTILITY ---------- Armored Scrap Engine Transmission Jammer Power Shielding > --- WEAPON ----------- Electro Disruptor Construct/C Electro Disruptor Construct/C Hvy. Directed Construct/C > --- INVENTORY -------- (None) [Rating: 65] Favorites ----------- Power Ion Engine Engine Ion Engine Power Core Constructs Propulsion Compact Wheel Wheel Compact Wheel Hover Unit Constructs Utility Power Shielding Device Shield Generator Protection Power Shielding Weapon Grenade Launcher Energy Gun EM Pulse Gun Energy Cannon Beam Cannon Ballistic Gun Shotgun Ballistic Cannon Constructs Launcher Grenade Launcher Build | -11 -10 -10 -8 -6 -6 -6 -6 -5 ------- Run | Yrd Mat Sub Rec Fac Was Fac DSF Fac Slots Evolved 7 | 4 2 . 1 . . . . . Power . | . . . . . . . . . Propulsion 1 | . 1 . . . . . . . Utility 3 | 1 1 . 1 . . . . . Weapon 3 | 3 . . . . . . . . Parts Attached 30 | 8 10 2 8 . . 1 1 . Power 1 | 1 . . . . . . . . Engine 1 | 1 . . . . . . . . Core . | . . . . . . . . . Reactor . | . . . . . . . . . Propulsion 4 | 1 1 2 . . . . . . Treads . | . . . . . . . . . Leg . | . . . . . . . . . Wheel 4 | 1 1 2 . . . . . . Hover . | . . . . . . . . . Flight . | . . . . . . . . . Utility 11 | 3 2 . 4 . . 1 1 . Device 7 | 3 1 . 1 . . 1 1 . Storage . | . . . . . . . . . Processor . | . . . . . . . . . Hackware . | . . . . . . . . . Protection 4 | . 1 . 3 . . . . . Artifact . | . . . . . . . . . Weapon 14 | 3 7 . 4 . . . . . Energy Gun 4 | 1 2 . 1 . . . . . Energy Cannon 2 | . 1 . 1 . . . . . Ballistic Gun 6 | 2 2 . 2 . . . . . Ballistic Cannon . | . . . . . . . . . Launcher 2 | . 2 . . . . . . . Special Weapon . | . . . . . . . . . Impact Weapon . | . . . . . . . . . Slashing Weapon . | . . . . . . . . . Piercing Weapon . | . . . . . . . . . Special Melee Weapon . | . . . . . . . . . Unidentified Prototypes 1 | . . . 1 . . . . . Parts Lost 3 | . . . . . 2 . . 1 Power 1 | . . . . . 1 . . . Propulsion . | . . . . . . . . . Utility 1 | . . . . . . . . 1 Weapon 1 | . . . . . 1 . . . Highest Loss Streak 2 | . . . . . 2 . . 1 To Critical Strikes . | . . . . . . . . . Average Slot Usage (%) 89 | . 96 99 94 81 66 52 54 70 Engine 8 | . 10 10 9 9 6 . . . Reactor 1 | . . . . . 2 9 9 6 Wheel 14 | . 16 19 17 . . . 1 6 Device 19 | . 21 20 18 18 15 16 18 18 Protection 9 | . 5 10 14 9 9 9 9 8 Energy Gun 6 | . 9 10 6 . . . . . Energy Cannon 8 | . 8 10 9 18 10 . . 8 Ballistic Gun 9 | . 14 10 9 9 6 . . . Ballistic Cannon 2 | . . . . . 3 9 9 17 Launcher 7 | . 9 10 9 9 6 . . . Peak Build Rating 65 | 9 14 15 37 37 37 37 47 65 Average Rating 23 | 5 13 13 23 37 34 36 42 59 On Entrance 25 | . 9 14 14 37 37 32 37 47 Naked Turns . | . . . . . . . . . Heaviest Build 41 | 10 20 20 27 26 26 20 23 41 Greatest Support 40 | 21 31 35 31 18 23 23 40 40 Greatest Overweight (x) 3 | . . 1 3 1 1 . . 1 Average Overweight (x) . | . . . . 1 . . . . Largest Inventory Capacity . | . . . . . . . . . Average Capacity . | . . . . . . . . . Most Carried . | . . . . . . . . . Average Carried . | . . . . . . . . . Final Capacity . | . . . . . . . . . Final Carried . | . . . . . . . . . Scrap Engine Consumption 56 | . . . 21 1 2 1 22 9 Constructs Created 5 | . . . 2 . 1 . . 2 Constructs Modified 13 | . . . . . 2 1 3 7 Class Distribution -------------------- 41% | Tank 18% | Gunner 17% | Hacker-Construct 11% | Hacker-Tank 10% | Hacker-Bomber Dominant Class ---------------- Tank | -10/Materials Tank | -10/Subcaves Hacker-Tank | -8/Recycling Hacker-Bomber | -6/Factory Hacker-Bomber | -6/Waste Hacker-Construct | -6/Factory Hacker-Construct | -6/DSF Hacker-Construct | -5/Factory Resources | -11 -10 -10 -8 -6 -6 -6 -6 -5 ----------- Run | Yrd Mat Sub Rec Fac Was Fac DSF Fac Matter Collected 2136 | 298 636 393 596 . . . 213 . Remotely . | . . . . . . . . . Salvage Created 3063 | 180 467 318 1674 . . . 175 249 Parts 179 | 17 60 17 52 . . . 18 15 Haulers Intercepted 3 | . 2 . . . . . . 1 Recyclers Shooed 1 | . . . 1 . . . . . Parts Field Recycled . | . . . . . . . . . Retrieved Matter . | . . . . . . . . . Parts Self-Destructed 9 | . . 9 . . . . . . Prevented . | . . . . . . . . . Kills | -11 -10 -10 -8 -6 -6 -6 -6 -5 ------- Run | Yrd Mat Sub Rec Fac Was Fac DSF Fac Combat Hostiles Destroyed 50 | . 21 8 12 . . . 4 5 Guns 20 | . 14 2 4 . . . . . Cannons 16 | . 2 2 5 . . . 4 3 AOE 14 | . 5 4 3 . . . . 2 Classes Destroyed 20 | 3 5 2 6 . . . 3 1 Worker 4 | 2 1 . . . . . . 1 Builder 2 | . 1 . 1 . . . . . Tunneler 8 | 4 3 . 1 . . . . . Hauler 3 | . 2 . . . . . . 1 Recycler 9 | 1 . . 8 . . . . . Turret 2 | . . 2 . . . . . . Watcher 2 | . 2 . . . . . . . Swarmer 13 | . 12 1 . . . . . . Cutter 2 | . . . . . . . 2 . Grunt 13 | . 9 . 1 . . . . 3 Brawler 1 | . . . . . . . 1 . Duelist 1 | . . . 1 . . . . . Protector 1 | . . . 1 . . . . . Sentry 5 | . . . 5 . . . . . Specialist 1 | . . . . . . . . 1 Hunter 2 | . . . 1 . . . . 1 Heavy 1 | . . . . . . . 1 . Subdweller 7 | . . 7 . . . . . . Scientist 2 | . . . 2 . . . . . Scrapper 3 | . . . 3 . . . . . Best Kill Streak 7 | 3 6 3 7 . . . 2 4 Combat Bots Only 4 | . 3 2 4 . . . 2 2 Max Kills in Single Turn 4 | 1 3 1 2 . . . 1 4 Gunslinging 1 | . 1 . . . . . . . Exploded 2 | . 2 1 1 . . . . 2 Melee . | . . . . . . . . . Uniques/NPCs Destroyed . | . . . . . . . . . Combat | -11 -10 -10 -8 -6 -6 -6 -6 -5 -------- Run | Yrd Mat Sub Rec Fac Was Fac DSF Fac Hostile Shots Fired 233 | . 54 37 23 . 2 . 57 60 Missed 71 | . 15 16 7 . . . 20 13 Damage Taken 2713 | . 302 281 299 . 65 . 1019 747 Core 2182 | . 235 224 222 . 59 . 861 581 Absorbed by Shields 272 | . 97 111 54 . 10 . . . Redirected to Core 1594 | . 199 196 172 . 24 . 497 506 Redirected to Shielding 50 | . . . 7 . . . 22 21 Regen/Repaired (Parts) 90 | . . . 7 . 6 . 58 19 Core Remaining (%) 63 | 100 . . 77 . . . 12 . Volleys Fired 241 | 15 86 30 77 . 2 . 18 13 Largest 4 | 3 4 4 4 . 4 . 1 3 Hottest 353 | 80 153 153 165 . 181 . 202 353 Shots Fired 654 | 45 242 101 204 . 8 . 18 36 Gun 400 | 45 186 55 112 . 2 . . . Cannon 199 | . 35 30 76 . 4 . 18 36 Launcher 55 | . 21 16 16 . 2 . . . Special . | . . . . . . . . . Kinetic 249 | 30 116 25 76 . 2 . . . Thermal 213 | 15 55 30 80 . 4 . 18 11 Explosive 55 | . 21 16 16 . 2 . . . Electromagnetic 137 | . 50 30 32 . . . . 25 Robot Hit Streak 27 | 7 7 27 23 . 4 . 8 14 Robot Miss Streak 7 | 4 7 1 2 . 1 . 2 1 Penetration Max . | . . . . . . . . . Secondary Targets 2 | . 2 . . . . . . . Max Gunslinging Chain 1 | . 1 . . . . . . . Shots Hit Robots 233 | 21 48 46 75 . 5 . 13 25 Core Hits 146 | 9 42 22 51 . 1 . 7 14 Critical Kills . | . . . . . . . . . Critical Parts Destroyed . | . . . . . . . . . Critical Strikes 1 | . 1 . . . . . . . Corrupt 1 | . 1 . . . . . . . Melee Attacks . | . . . . . . . . . Impact . | . . . . . . . . . Slashing . | . . . . . . . . . Piercing . | . . . . . . . . . Sneak Attacks . | . . . . . . . . . Combat Hostiles . | . . . . . . . . . Follow-up Attacks . | . . . . . . . . . Damage Inflicted 7081 | 199 1203 978 2259 . 197 . 578 1667 Guns 2046 | 199 548 340 906 . 53 . . . Cannons 2460 | . 158 248 779 . 26 . 578 671 Explosions 2566 | . 497 390 574 . 118 . . 987 Melee . | . . . . . . . . . Ramming 9 | . . . . . . . . 9 Kinetic 1436 | 91 326 176 790 . 53 . . . Thermal 3337 | 108 199 248 851 . 26 . 578 1327 Explosive 1528 | . 497 390 523 . 118 . . . Electromagnetic 771 | . 181 164 95 . . . . 331 Impact . | . . . . . . . . . Slashing . | . . . . . . . . . Piercing . | . . . . . . . . . Highest Corruption 13 | . 2 2 2 . 13 13 13 . Average Corruption 3 | . 2 2 2 . 8 13 13 . Corruption Purged . | . . . . . . . . . Corruption Blocked . | . . . . . . . . . Effects 71 | . 15 11 27 . 5 3 10 . Message Errors 14 | . 3 3 5 . 2 . 1 . Matter Fused 21 | . 5 2 8 . 1 2 3 . Heat Flow Errors 8 | . 1 2 5 . . . . . Energy Discharges 9 | . 3 3 2 . . 1 . . Parts Rejected 1 | . . . . . 1 . . . Data Loss (minor) 6 | . 1 1 1 . . . 3 . Data Loss (major) 7 | . 2 . 3 . 1 . 1 . Misfires 2 | . . . 2 . . . . . Alerts 2 | . . . . . . . 2 . Weapon Failures 1 | . . . 1 . . . . . Overload Shots . | . . . . . . . . . Overflow Damage 102 | . 22 . 59 . . . . 21 Projectiles 57 | . . . 52 . . . . 5 Explosions 45 | . 22 . 7 . . . . 16 Melee . | . . . . . . . . . Knockbacks . | . . . . . . . . . Impact . | . . . . . . . . . Kinetic . | . . . . . . . . . Secondary . | . . . . . . . . . Self-Inflicted Damage 76 | . 36 2 34 . . . . 4 Shots 4 | . 2 1 1 . . . . . Rammed 1 | . . . . . . . . 1 Targets Rammed 1 | . . . . . . . . 1 Kicked . | . . . . . . . . . Crushed . | . . . . . . . . . Highest Temperature 617 | 100 413 239 310 . 204 . 514 617 Average Temperature 91 | 46 81 32 74 . 102 . 226 185 Received Heat Transfer 667 | . 66 57 151 . . . 153 240 Effects 17 | . 6 . 4 . . . 3 4 Shutdowns 6 | . 2 . . . . . 2 2 Energy Bleed 2 | . . . . . . . . 2 Interference 7 | . 3 . 4 . . . . . Matter Decay 1 | . 1 . . . . . . . Damage (core) 1 | . . . . . . . 1 . Siege Activations . | . . . . . . . . . Robots Corrupted . | . . . . . . . . . Combat Hostiles . | . . . . . . . . . Parts Fried . | . . . . . . . . . Impact Corruptions . | . . . . . . . . . Robots Melted . | . . . . . . . . . Combat Hostiles . | . . . . . . . . . Parts Melted 3 | . 1 1 1 . . . . . Heat Transferred 2885 | 250 433 518 1297 . 37 . . 350 Parts Sabotaged . | . . . . . . . . . Parts Stolen . | . . . . . . . . . Parts Stripped . | . . . . . . . . . Power Chain Reactions 1 | . . . 1 . . . . . Alert | -11 -10 -10 -8 -6 -6 -6 -6 -5 ------- Run | Yrd Mat Sub Rec Fac Was Fac DSF Fac Peak Influence 850 | 35 850 . 319 152 59 16 160 256 Initial 152 | . 22 . 135 152 53 13 11 84 Average 312 | 11 573 . 162 152 39 15 78 90 Maximum Alert Level 3 | . 3 . 1 . . . . 1 Low Security (%) 48 | 100 9 . 60 100 100 100 100 96 Level 1 18 | . 14 . 39 . . . . 3 Level 2 17 | . 41 . . . . . . . Level 3 14 | . 35 . . . . . . . Level 4 . | . . . . . . . . . Level 5 . | . . . . . . . . . High Security . | . . . . . . . . . Max Security . | . . . . . . . . . Squads Dispatched 7 | . 5 . . . . . 2 . Investigation 2 | . 2 . . . . . . . Extermination . | . . . . . . . . . Reinforcement 5 | . 3 . . . . . 2 . Assault . | . . . . . . . . . Garrison . | . . . . . . . . . Intercept . | . . . . . . . . . Searches Triggered . | . . . . . . . . . Construction Impeded . | . . . . . . . . . Haulers Reinforced . | . . . . . . . . . Active Scanning Responses . | . . . . . . . . . Cargo Convoy Interrupts 1 | . . . . . . . . 1 Stealth | -11 -10 -10 -8 -6 -6 -6 -6 -5 --------- Run | Yrd Mat Sub Rec Fac Was Fac DSF Fac Distress Signals 2 | . 1 . . . . . . 1 Communications Jammed 8 | . . . . . . . . 8 Distress Signals 8 | . . . . . . . . 8 Times Spotted 80 | . 26 15 5 . 3 . 8 23 Peak Tracking Total 12 | . 4 2 3 . 3 . 4 12 Tactical Retreats 4 | . . 2 . . . . 1 1 Traps | -11 -10 -10 -8 -6 -6 -6 -6 -5 ------- Run | Yrd Mat Sub Rec Fac Was Fac DSF Fac Traps Triggered 5 | . 2 . . 1 . . 2 . Indirectly . | . . . . . . . . . Trap Hack Attempts . | . . . . . . . . . Triggered . | . . . . . . . . . Disarmed . | . . . . . . . . . Reprogrammed . | . . . . . . . . . Reused . | . . . . . . . . . Traps Extracted . | . . . . . . . . . Installed . | . . . . . . . . . Triggered . | . . . . . . . . . Machines | -11 -10 -10 -8 -6 -6 -6 -6 -5 ---------- Run | Yrd Mat Sub Rec Fac Was Fac DSF Fac Machines Disabled 58 | . 23 2 25 . . . . 8 Max in Single Turn 5 | . 2 2 3 . . . . 5 Machines Repaired . | . . . . . . . . . Machines Dismantled . | . . . . . . . . . Machines Sabotaged . | . . . . . . . . . Overloaded Fab Kills . | . . . . . . . . . Hacking | -11 -10 -10 -8 -6 -6 -6 -6 -5 --------- Run | Yrd Mat Sub Rec Fac Was Fac DSF Fac Machines Accessed 23 | . 4 3 13 . . 2 . 1 Terminals 12 | . 3 . 6 . . 2 . 1 Fabricators . | . . . . . . . . . Repair Stations . | . . . . . . . . . Recycling Units 6 | . 1 . 5 . . . . . Scanalyzers . | . . . . . . . . . Garrison Access . | . . . . . . . . . Total Hacks 76 | . 11 7 54 . . 3 . 1 Successful 56 | . 6 7 41 . . 2 . . Failed 20 | . 5 . 13 . . 1 . 1 Catastrophic 6 | . 2 . 3 . . . . 1 Database Lockouts . | . . . . . . . . . Manual . | . . . . . . . . . Terminals 32 | . 9 . 19 . . 3 . 1 Fabricators . | . . . . . . . . . Repair Stations . | . . . . . . . . . Recycling Units 11 | . 2 . 9 . . . . . Scanalyzers . | . . . . . . . . . Garrison Access . | . . . . . . . . . Terminal Hacks 48 | . 4 7 35 . . 2 . . Record 30 | . . 5 25 . . . . . Robot Schematic 1 | . . . 1 . . . . . Prototype ID Bank 2 | . 1 . . . . 1 . . Open Door 1 | . . 1 . . . . . . Open DSF 1 | . . . . . . 1 . . Unreport Threat 2 | . . . 2 . . . . . Locate Traps 2 | . 2 . . . . . . . Maintenance Status 1 | . . . 1 . . . . . Registered Components 1 | . . . 1 . . . . . Registered Prototypes 1 | . . . 1 . . . . . Zone Layout 3 | . 1 . 2 . . . . . Release Object 3 | . . 1 2 . . . . . Fabricator Hacks . | . . . . . . . . . Repair Station Hacks . | . . . . . . . . . Recycling Unit Hacks 8 | . 2 . 6 . . . . . Retrieve Matter 2 | . 1 . 1 . . . . . Retrieve Components 6 | . 1 . 5 . . . . . Scanalyzer . | . . . . . . . . . Garrison Access Hacks . | . . . . . . . . . Unauthorized Hacks . | . . . . . . . . . Terminals . | . . . . . . . . . Fabricators . | . . . . . . . . . Repair Stations . | . . . . . . . . . Recycling Units . | . . . . . . . . . Scanalyzers . | . . . . . . . . . Garrison Access . | . . . . . . . . . Data Cores Recovered . | . . . . . . . . . Used . | . . . . . . . . . Hacking Detections 12 | . 4 . 6 . . 1 . 1 Full Trace Events 3 | . 2 . 1 . . . . . Feedback Events . | . . . . . . . . . Feedback Blocked . | . . . . . . . . . Robot Schematics Acquired 1 | . . . 1 . . . . . Robots Built . | . . . . . . . . . Authchips . | . . . . . . . . . Time . | . . . . . . . . . Total Robot Build Rating . | . . . . . . . . . Part Schematics Acquired . | . . . . . . . . . Parts Built . | . . . . . . . . . Authchips . | . . . . . . . . . Time . | . . . . . . . . . Total Part Build Rating . | . . . . . . . . . Parts Repaired . | . . . . . . . . . Time . | . . . . . . . . . Parts Recycled . | . . . . . . . . . Recycled Matter . | . . . . . . . . . Retrieved Matter . | . . . . . . . . . Retrieved Components 16 | . 3 . 13 . . . . . Parts Scanalyzed . | . . . . . . . . . Part Schematics Acquired . | . . . . . . . . . Parts Damaged . | . . . . . . . . . Bothacking | -11 -10 -10 -8 -6 -6 -6 -6 -5 ------------ Run | Yrd Mat Sub Rec Fac Was Fac DSF Fac Used RIF Installer . | . . . . . . . . . Robots Hacked . | . . . . . . . . . Non-combat . | . . . . . . . . . Combat . | . . . . . . . . . Robot Hacks Applied . | . . . . . . . . . Relay Couplers Released . | . . . . . . . . . Fabnet Peak Effective % . | . . . . . . . . . Robots Rewired . | . . . . . . . . . Allies Hacked . | . . . . . . . . . Hacks Repelled . | . . . . . . . . . Allies | -11 -10 -10 -8 -6 -6 -6 -6 -5 -------- Run | Yrd Mat Sub Rec Fac Was Fac DSF Fac Total Allies 1 | . . . . . 1 . . . Largest Group 1 | . . . . . 1 . . . Highest-Rated Group 31 | . . . . . 31 . . . Highest-Rated Ally 31 | . . . . . 31 . . . Total Orders . | . . . . . . . . . Ally Attacks 10 | . . . . . 10 . . . Total Damage 148 | . . . . . 148 . . . Kills . | . . . . . . . . . Allies Corrupted . | . . . . . . . . . Allies Melted . | . . . . . . . . . Intel | -11 -10 -10 -8 -6 -6 -6 -6 -5 ------- Run | Yrd Mat Sub Rec Fac Was Fac DSF Fac Robot Analysis Total . | . . . . . . . . . Derelict Logs Recovered 1 | . . 1 . . . . . . Drone Launches . | . . . . . . . . . Drone Recoveries . | . . . . . . . . . Exploration | -11 -10 -10 -8 -6 -6 -6 -6 -5 ------------- Run | Yrd Mat Sub Rec Fac Was Fac DSF Fac Turns Passed 5807 | 124 2123 787 1582 62 118 95 227 689 Spaces Moved 3792 | 80 904 735 1301 51 111 69 177 364 Core 23 | 19 . . 4 . . . . . Treads . | . . . . . . . . . Legs 270 | . . . 11 51 111 16 . 81 Wheels 3275 | 61 904 735 1286 . . . 43 246 Hover 215 | . . . . . . 53 134 28 Flight 9 | . . . . . . . . 9 Fastest Speed 50 | 50 90 90 90 120 86 86 86 86 Average Speed 96 | 88 97 90 90 120 99 86 86 133 Slowest Speed 200 | 100 100 95 200 120 120 86 86 163 Overloaded Moves . | . . . . . . . . . Propulsion Burnouts . | . . . . . . . . . Robots Hopped . | . . . . . . . . . Cave-ins Triggered . | . . . . . . . . . Exploration Rate (%) 44 | 4 95 34 97 2 71 1 89 10 Regions Visited 8 Branch Regions 2 Pre-discovered Areas . | . . . . . . . . . Known Exits Taken 1 | . . . . . . 1 . . Unknown Exits Taken 4 | 1 1 1 1 . . . . . Scrap Searched 3 | . . 3 . . . . . . Spaces Dug 19 | . 18 . 1 . . . . . Terrain Destroyed 470 | . 199 90 159 . 7 . 4 11 Melee . | . . . . . . . . . Projectile 14 | . . . 10 . . . 4 . AOE 456 | . 199 90 149 . 7 . . 11 Terrain Rammed . | . . . . . . . . . Walls Destroyed . | . . . . . . . . . Machines Disabled . | . . . . . . . . . Actions | -11 -10 -10 -8 -6 -6 -6 -6 -5 --------- Run | Yrd Mat Sub Rec Fac Was Fac DSF Fac Total 5453 | 103 1974 788 1542 53 113 104 235 541 Wait 1339 | . 952 11 144 2 1 35 35 159 Move 3785 | 79 903 734 1300 51 110 68 176 364 Hop . | . . . . . . . . . Pick Up . | . . . . . . . . . Fast Attach 25 | 7 10 1 5 . . 1 1 . Attach . | . . . . . . . . . Detach . | . . . . . . . . . Swap 5 | 1 . 1 3 . . . . . Drop 20 | 1 7 2 9 . . . 1 . Fire 241 | 15 86 30 77 . 2 . 18 13 Melee . | . . . . . . . . . Ram 1 | . . . . . . . . 1 Kick . | . . . . . . . . . Crush . | . . . . . . . . . Escape Stasis 4 | . . . . . . . 4 . Rewire . | . . . . . . . . . Trap . | . . . . . . . . . Miscellaneous 33 | . 16 9 4 . . . . 4 Route ------- -11/Scrapyard -10/Materials (discovered 6 exits: [*Mat x3] / [*Min x2] / *Sub) -10/Subcaves -8/Recycling -6/Factory (discovered 6 exits: Fac x3 / Low x2 / Ext) -6/Waste -6/Factory -6/DSF -5/Factory History --------- Turn | Location | Event 5 | -11/Scrapyard | Discovered new exit (range 16) 9 | -11/Scrapyard | Upgraded with Utility slot (x1) 9 | -11/Scrapyard | Upgraded with Weapon slot (x3) 125 | -11/Scrapyard | Entered Materials 322 | -10/Materials | Discovered new exit (range 9) 344 | -10/Materials | Build established: Gunner 475 | -10/Materials | Discovered new exit (range 3) 496 | -10/Materials | Reached level 2 804 | -10/Materials | Discovered new exit (range 15) 823 | -10/Materials | Reached level 3 826 | -10/Materials | Upgraded with Propulsion slot (x1) 826 | -10/Materials | Upgraded with Utility slot (x1) 917 | -10/Materials | Discovered new exit (range 16) 975 | -10/Materials | Discovered new exit (range 9) 1387 | -10/Materials | Build established: Tank 2200 | -10/Materials | Discovered new exit (range 12) 2248 | -10/Materials | Entered Subcaves 2250 | -10/Subcaves | Reached level 4 2310 | -10/Subcaves | Learned Materials stockpile data 2365 | -10/Subcaves | Released subatomizers from SUBCON Basin 2566 | -10/Subcaves | Visited Clippyterm 2569 | -10/Subcaves | Learned Factory fabricator intel 2569 | -10/Subcaves | Learned 40 Factory zone layouts 2936 | -10/Subcaves | Discovered new exit (range 9) 3035 | -10/Subcaves | Entered Recycling 3037 | -8/Recycling | Reached level 5 3038 | -8/Recycling | Upgraded with Utility slot (x1) 3185 | -8/Recycling | Scanned before Scraplab entrance 3198 | -8/Recycling | Entered Scraplab 3436 | -8/Recycling | Reached level 6 3772 | -8/Recycling | Build established: Hacker-Tank 3872 | -8/Recycling | Discovered new exit (range 16) 3983 | -8/Recycling | Angered Scraplab inhabitants 4082 | -8/Recycling | Found Prototype Device 4082 | -8/Recycling | Identified Scrap Engine 4354 | -8/Recycling | Core integrity fell below 50% 4369 | -8/Recycling | Reached level 7 4436 | -8/Recycling | Build established: Hacker-Bomber 4617 | -8/Recycling | Entered Factory 4618 | -6/Factory | Identified exit to Lower Caves 4618 | -6/Factory | Identified exit to Factory 4618 | -6/Factory | Identified exit to Extension 4619 | -6/Factory | Loaded intel: 6 fabricator locations 4619 | -6/Factory | Reached level 8 4679 | -6/Factory | Sucked down chute 4679 | -6/Factory | Entered Waste 4680 | -6/Waste | Met a frightened Derelict 4694 | -6/Waste | EMP discharged 4725 | -6/Waste | Spotted C-40 Crusher 4733 | -6/Waste | Spotted C-40 Crusher 4739 | -6/Waste | Crushed by Compactor (1 part destroyed) 4750 | -6/Waste | Spotted C-40 Crusher 4757 | -6/Waste | Spotted C-40 Crusher 4758 | -6/Waste | Crushed by Compactor (1 part destroyed, 2 dropped) 4788 | -6/Waste | Discovered new exit (range 11) 4794 | -6/Waste | EMP discharged 4794 | -6/Waste | System corruption reached 10% 4797 | -6/Waste | Entered Factory 4799 | -6/Factory | Identified exit to DSF 4892 | -6/Factory | Entered DSF 4894 | -6/DSF | Reached level 9 4913 | -6/DSF | Additional patrols routed to DSF 5037 | -6/DSF | Core integrity fell below 50% 5070 | -6/DSF | Core integrity fell below 20% 5077 | -6/DSF | Build established: Hacker-Construct 5104 | -6/DSF | Discovered exit to Factory (range 14) 5119 | -6/DSF | Entered Factory 5120 | -5/Factory | Core integrity fell below 50% 5120 | -5/Factory | Core integrity fell below 20% 5121 | -5/Factory | Reached level 10 5783 | -5/Factory | Cargo convoy interrupted 5783 | -5/Factory | Reached level 11 5808 | -5/Factory | Destroyed by P-70 Sage with High-powered Shock Rifle Last Messages --------------- 05787_ K-01 Serf collects debris. 05787_ I-47 Archangel distress signal jammed. 05789_ Slug penetrates Fabricator. 05790_ K-01 Serf collects debris. 05791_ Slammed into T-07 Excavator. 05791_ Transmission Jammer broken. 05791_ Destabilizing: Short circuit. 05798_ P-70 Sage shuts down. 05801_ X-77 Beamer misfires. 05804_ K-01 Serf latches onto P-70 Sage. 05804_ K-01 Serf pushes P-70 Sage. 05804_ M-28 Smith repairs P-70 Sage. 05805_ Penetrated by Slug. 05806_ Power failure, Multi-Fission Core shutdown. 05806_ P-70 Sage resets X-77 Beamer, system corruption cleaned. 05806_ K-01 Serf latches onto P-70 Sage. 05806_ K-01 Serf pushes P-70 Sage. 05807_ Overheating: Energy bleed (-29). 05807_ K-01 Serf pushes P-70 Sage. 05808_ Overheating: Energy bleed (-27). Map ----- +----------------------------------------------------+ | ?????????????????????????????????????????????????? | | ?????????????????????????????????????????????????? | | ?????????????????????????????????????????????????? | | ?????????????????????????????????????????????????? | | ????????????????????????????? ???????????????? | | ????????????????????????????? ?????????????? | | ????????????????????????????? % ??????????? | | ???????????????????????????? !!= ????????? | | ???????????????????????????? !%%% [ ??????? | | #??????????????????????????# ![%[ ??????? | | #??????????????????????????# ?????? | | #??????????????????????????# ?????? | | #??????????????????????????# / ????? | | #??????????????????????????# *[/ ????? | | #??????????????????????????#" %]/ ????? | | #??????????????????????????#" ][/* ???? | | #??????????????????????????#"""= ???? | | #????????????????????????### "" ??? | | #????????????????????????# [ ??? | | #????????????????????????#i ??? | | #????????????????????????#h###############???????? | | ######+###########???????# #?????????????????????? | | ^ #########h####??????????????????? | | # #??????????????????? | | ^ # x #??????????????????? | | ? # k @ #??????????????????? | | ^ ??? # pm ! #??????????????????? | | #???????# # w ==/ #??????????????????? | | #???????# # =[ #??????????????????? | | #???????# # =/ #??????????????????? | | #???????# + #??????????????????? | | #???????# # """ """p #??????????????????? | | +???????# # """ """p #??????????????????? | | #???????# # """ """ #??????????????????? | | #???????# # #??????????????????? | | ######### ###########+##??????????????????? | | !??????????????????? | | !??????????????????? | | ??????????????????? | | ??????????????????? | | ?????????????????? | | ######### """ """ """ """ """????????????????? | | # # """ """ """ """ """ ???????????????? | | # # """ """ """ """ """ ???????????????? | | # + """ "%" """ """ """ "??????????????? | | # # ?????????????? | | # # %% ?????????????? | | # # ?????????????? | | #### #########+####### ####????????????????? | | ???# #??# # #???????????????????? | +----------------------------------------------------+ Best States ------------- Heat Dissipation 55 Energy Generation 28 Energy Capacity 375 Matter Stores 350 Matter Capacity 350 Sight Range 16 Robot Scan Range 2 Terrain Scan Range 16 Terrain Scan Density 10 Jamming Range 12 Armor Coverage 150 Power Shielding 33 Evasion (%) 57 Offensive Hacking 15 Defensive Hacking 5 Item Schematics ----------------- None Robot Schematics ------------------ T-07 Excavator | -8/Recycling | Hacked Fabricated ------------ Nothing Alien Tech Used ----------------- None Achievements -------------- No Signal Challenges ------------ None RPGLIKE | -11 -10 -10 -8 -6 -6 -6 -6 -5 --------- Run | Yrd Mat Sub Rec Fac Was Fac DSF Fac Levels Raised 10 | . 2 1 3 1 . . 1 2 XP Earned 18573 | 3000 4443 1300 3745 1500 200 . 1750 2635 XP Spent 17930 | 3000 3000 1500 4500 . 1300 . 1660 2970 Upgrades 58 | 5 6 2 24 . 3 . 5 13 Propulsion Slot 1 | . 1 . . . . . . . Utility Slot 3 | 1 1 . 1 . . . . . Weapon Slot 3 | 3 . . . . . . . . Core Integrity 23 | . . . 16 . . . . 7 Heat Dissipation 5 | . . . 1 . . . 2 2 Energy Generation 2 | . . . 1 . . . . 1 Energy Storage 3 | . . . . . . . . 3 Matter Storage 1 | . 1 . . . . . . . Mass Support 2 | 1 . . . . 1 . . . Sensor Range 1 | . . . 1 . . . . . Ranged Accuracy 5 | . 3 2 . . . . . . Hack Attack % 3 | . . . 3 . . . . . Hack Defense % 1 | . . . 1 . . . . . KI Damage % 3 | . . . . . . . 3 . TH Damage % 2 | . . . . . 2 . . . Protomatter Created 569 | . 238 75 60 . . . 62 134 Integrity Restored 440 | . 224 108 54 . . . . 54 Core 426 | . 210 108 54 . . . . 54 Parts 14 | . 14 . . . . . . . Protomatter Decayed 119 | . 12 . . . 45 . 62 . Game ------ Seed AlertBombardmentStabilizer Manual? 0 Play Time 00:47:14 Cumulative 8.3 hours Start 2025.04.23 @ 20:46:41 End 2025.04.24 @ 13:24:57 Sessions 1 Manual Loads 0 Difficulty Rogue Special Mode Winter2019/RPGLIKE Game No. 18 Rogue 18 Adventurer 0 Explorer 0 Win Type - Total 0 Types 0/0/0/0/0/0/0/0/0 Lore% 13 Gallery% 13 Achievement% 14 Wizard Run 0 Options --------- Layout 0 ASCII 0 Keyboard 0 Movement Numpad Keybinds 0 Fullscreen 2 Font 14/Terminus Map View 36x27 Zoom Use 99% Tactical HUD 1 Map Filters NONE Filters NONE Steam 1 RUN: cca11349-05fd-4aae-952d-a4e68cb465fd